fUSD/lending_fUSD_20250616
["ID","MTS","AMOUNT","RATE_DAILY","PERIOD"]
[366075399,1750050668193,-442.925765,0.00016602,2]
[366075400,1750050668203,-580.02,0.00016602,2]
[366075401,1750050668213,-1538.72,0.00016602,2]
[366075402,1750050668222,-1116.32,0.00016602,2]
[366075403,1750050668232,-1590.62,0.00016602,2]
[366075404,1750050668242,-442.925765,0.00016602,2]
[366075405,1750050668251,-442.925765,0.00016602,2]
[366075406,1750050668261,-442.925765,0.00016602,2]
[366075407,1750050668271,-442.925765,0.00016602,2]
[366075408,1750050668281,-442.925765,0.00016602,2]
[366075409,1750050668290,-4516.12,0.00016602,2]
[366075410,1750050668300,-3539.85,0.00016602,2]
[366075411,1750050668310,-490.0,0.00016602,2]
[366075412,1750050668320,-494.07881856,0.00016602,2]
[366075413,1750050668331,-1307.61,0.00016602,2]
[366075414,1750050668343,-1095.05,0.00016602,2]
[366075415,1750050668355,-2759.97,0.00016602,2]
[366075416,1750050668365,-884.01,0.00016602,2]
[366075417,1750050668377,-635.26,0.00016602,2]
[366075418,1750050668387,-490.0,0.00016602,2]
[366075419,1750050668396,-151.0,0.00016602,2]
[366075420,1750050668407,-151.0,0.00016602,2]
[366075421,1750050668416,-151.0,0.00016602,2]
[366075422,1750050668426,-490.0,0.00016602,2]
[366075423,1750050668435,-7364.67,0.00016602,2]
[366075424,1750050668445,-490.0,0.00016602,2]
[366075425,1750050668455,-490.0,0.00016602,2]
[366075426,1750050668464,-5076.36,0.00016602,2]
[366075427,1750050668474,-712.94,0.00016602,2]
[366075428,1750050668483,-1374.71,0.00016602,2]
[366075429,1750050668493,-490.0,0.00016602,2]
[366075430,1750050668503,-407.236363,0.00016602,2]
[366075431,1750050668515,-5164.05,0.00016602,2]
[366075432,1750050668526,-407.236363,0.00016602,2]
[366075433,1750050668535,-1565.78,0.00016602,2]
[366075434,1750050668546,-407.236363,0.00016602,2]
[366075435,1750050668557,-407.236363,0.00016602,2]
[366075436,1750050668567,-7477.45,0.00016602,2]
[366075437,1750050668577,-779.58,0.00016602,2]
[366075438,1750050668587,-1075.96,0.00016602,2]
[366075439,1750050668596,-407.236363,0.00016602,2]
[366075440,1750050668606,-407.236363,0.00016602,2]
[366075441,1750050668616,-2747.94,0.00016602,2]
[366075442,1750050668625,-1976.51,0.00016602,2]
[366075443,1750050668635,-407.236363,0.00016602,2]
[366075444,1750050668645,-407.236363,0.00016602,2]
[366075445,1750050668655,-490.0,0.00016602,2]
[366075446,1750050668666,-992.35,0.00016602,2]
[366075447,1750050668676,-1356.85,0.00016602,2]
[366075448,1750050668686,-3915.7,0.00016602,2]
[366075449,1750050668696,-521.49,0.00016602,2]
[366075450,1750050668707,-490.0,0.00016602,2]
[366075451,1750050668717,-490.0,0.00016602,2]
[366075452,1750050668728,-538.27,0.00016602,2]
[366075453,1750050668739,-600.63,0.00016602,2]
[366075454,1750050668750,-633.79,0.00016602,2]
[366075455,1750050668759,-699.01,0.00016602,2]
[366075456,1750050668769,-2370.49,0.00016602,2]
[366075457,1750050668779,-2631.75,0.00016602,2]
[366075458,1750050668789,-513.85,0.00016602,2]
[366075459,1750050668799,-6327.52,0.00016602,2]
[366075460,1750050668809,-516.08286717,0.00016602,2]
[366075461,1750050668819,-151.0,0.00016602,2]
[366075462,1750050668830,-490.0,0.00016602,2]
[366075463,1750050668840,-11010.27,0.00016602,2]
[366075464,1750050668850,-151.0,0.00016602,2]
[366075465,1750050668860,-151.0,0.00016602,2]
[366075466,1750050668870,-151.0,0.00016602,2]
[366075467,1750050668880,-497.54,0.00016602,2]
[366075468,1750050668893,-2940.25,0.00016602,2]
[366075469,1750050668903,-490.0,0.00016602,2]
[366075470,1750050668913,-501.36,0.00016602,2]
[366075471,1750050668923,-4176.96,0.00016602,2]
[366075472,1750050668937,-151.0,0.00016602,2]
[366075473,1750050668948,-490.0,0.00016602,2]
[366075474,1750050668958,-151.0,0.00016602,2]
[366075475,1750050668971,-1116.02,0.00016602,2]
[366075476,1750050668981,-167.00185,0.00016602,2]
[366075477,1750050668990,-526.05,0.00016602,2]
[366075478,1750050669000,-1578.26,0.00016602,2]
[366075479,1750050669010,-490.0,0.00016602,2]
[366075480,1750050669019,-2097.37,0.00016602,2]
[366075481,1750050669029,-8874.58,0.00016602,2]
[366075482,1750050669039,-490.0,0.00016602,2]
[366075483,1750050669049,-654.33,0.00016602,2]
[366075484,1750050669058,-4869.12,0.00016602,2]
[366075485,1750050669068,-490.0,0.00016602,2]
[366075486,1750050669079,-2443.77,0.00016602,2]
[366075487,1750050669088,-490.0,0.00016602,2]
[366075488,1750050669098,-1722.32,0.00016602,2]
[366075489,1750050669107,-1232.89,0.00016602,2]
[366075490,1750050669117,-490.0,0.00016602,2]
[366075491,1750050669128,-2552.81,0.00016602,2]
[366075492,1750050669137,-1892.34,0.00016602,2]
[366075493,1750050669147,-919.94,0.00016602,2]
[366075494,1750050669157,-220.569412,0.00016602,2]
[366075495,1750050669166,-220.569412,0.00016602,2]
[366075496,1750050669176,-490.0,0.00016602,2]
[366075497,1750050669185,-220.569412,0.00016602,2]
[366075498,1750050669195,-220.569412,0.00016602,2]
[366075499,1750050669207,-1396.73,0.00016602,2]
[366075500,1750050669217,-220.569412,0.00016602,2]
[366075501,1750050669226,-490.0,0.00016602,2]
[366075502,1750050669235,-2321.77,0.00016602,2]
[366075503,1750050669245,-220.569412,0.00016602,2]
[366075504,1750050669256,-1310.4,0.00016602,2]
[366075505,1750050669266,-919.08,0.00016602,2]
[366075506,1750050669275,-220.569412,0.00016602,2]
[366075507,1750050669285,-220.569412,0.00016602,2]
[366075508,1750050669295,-511.96,0.00016602,2]
[366075509,1750050669305,-220.569412,0.00016602,2]
[366075510,1750050669316,-220.569412,0.00016602,2]
[366075511,1750050669326,-1202.72,0.00016602,2]
[366075512,1750050669337,-1380.97,0.00016602,2]
[366075513,1750050669347,-2012.61,0.00016602,2]
[366075514,1750050669357,-490.0,0.00016602,2]
[366075515,1750050669367,-842.55,0.00016602,2]
[366075516,1750050669377,-901.05,0.00016602,2]
[366075517,1750050669387,-3092.59,0.00016602,2]
[366075518,1750050669398,-490.0,0.00016602,2]
[366075519,1750050669408,-2866.79,0.00016602,2]
[366075520,1750050669418,-490.0,0.00016602,2]
[366075521,1750050669429,-2068.1,0.00016602,2]
[366075522,1750050669438,-151.0,0.00016602,2]
[366075523,1750050669449,-151.0,0.00016602,2]
[366075524,1750050669459,-439.08514447,0.00016602,2]
[366075525,1750050669469,-151.0,0.00016602,2]
[366075526,1750050669479,-169.366984,0.00016602,2]
[366075527,1750050669489,-2595.64,0.00016602,2]
[366075528,1750050669499,-1418.22,0.00016602,2]
[366075529,1750050669509,-1017.75,0.00016602,2]
[366075530,1750050669519,-4069.9,0.00016602,2]
[366075531,1750050669529,-1331.84,0.00016602,2]
[366075532,1750050669540,-570.06,0.00016602,2]
[366075533,1750050669551,-1892.5,0.00016602,2]
[366075534,1750050669561,-490.0,0.00016602,2]
[366075535,1750050669574,-1438.24,0.00016602,2]
[366075536,1750050669585,-2066.04,0.00016602,2]
[366075537,1750050669595,-490.0,0.00016602,2]
[366075538,1750050669605,-1870.27,0.00016602,2]
[366075539,1750050669615,-1150.56,0.00016602,2]
[366075540,1750050669625,-490.0,0.00016602,2]
[366075541,1750050669635,-2533.91,0.00016602,2]
[366075542,1750050669645,-490.0,0.00016602,2]
[366075543,1750050669656,-891.04,0.00016602,2]
[366075544,1750050669667,-6442.14,0.00016602,2]
[366075545,1750050669677,-490.0,0.00016602,2]
[366075546,1750050669687,-627.79,0.00016602,2]
[366075547,1750050669697,-1052.5,0.00016602,2]
[366075548,1750050669708,-490.0,0.00016602,2]
[366075549,1750050669719,-10732.31,0.00016602,2]
[366075550,1750050669730,-151.0,0.00016602,2]
[366075551,1750050669740,-1838.83,0.00016602,2]
[366075552,1750050669751,-151.0,0.00016602,2]
[366075553,1750050669762,-151.0,0.00016602,2]
[366075554,1750050669773,-490.0,0.00016602,2]
[366075555,1750050669783,-151.0,0.00016602,2]
[366075556,1750050669794,-151.0,0.00016602,2]
[366075557,1750050669805,-3601.56,0.00016602,2]
[366075558,1750050669815,-490.0,0.00016602,2]
[366075559,1750050669826,-566.99,0.00016602,2]
[366075560,1750050669836,-2074.41,0.00016602,2]
[366075561,1750050669847,-1927.17,0.00016602,2]
[366075562,1750050669857,-7701.94,0.00016602,2]
[366075563,1750050669867,-2224.66,0.00016602,2]
[366075564,1750050669877,-2598.83,0.00016602,2]
[366075565,1750050669889,-1085.14,0.00016602,2]
[366075566,1750050669901,-4177.12,0.00016602,2]
[366075567,1750050669911,-644.54,0.00016602,2]
[366075568,1750050669921,-1387.96,0.00016602,2]
[366075569,1750050669933,-12298.08,0.00016602,2]
[366075570,1750050669945,-1897.46,0.00016602,2]
[366075571,1750050669956,-1192.68,0.00016602,2]
[366075572,1750050669966,-1300.72,0.00016602,2]
[366075573,1750050669976,-1471.9,0.00016602,2]
[366075574,1750050669987,-490.0,0.00016602,2]
[366075575,1750050669997,-1372.67,0.00016602,2]
[366075576,1750050670007,-2253.89,0.00016602,2]
[366075577,1750050670017,-4998.12,0.00016602,2]
[366075578,1750050670026,-502.02,0.00016602,2]
[366075579,1750050670036,-1274.32,0.00016602,2]
[366075580,1750050670047,-490.0,0.00016602,2]
[366075581,1750050670057,-551.47,0.00016602,2]
[366075582,1750050670067,-3619.39,0.00016602,2]
[366075583,1750050670076,-7870.53,0.00016602,2]
[366075584,1750050670086,-1391.31,0.00016602,2]
[366075585,1750050670096,-490.0,0.00016602,2]
[366075586,1750050670107,-490.0,0.00016602,2]
[366075587,1750050670117,-3861.95,0.00016602,2]
[366075588,1750050670126,-490.0,0.00016602,2]
[366075589,1750050670136,-899.19,0.00016602,2]
[366075590,1750050670146,-292.44622,0.00016602,2]
[366075591,1750050670156,-292.44622,0.00016602,2]
[366075592,1750050670165,-292.44622,0.00016602,2]
[366075593,1750050670175,-898.72,0.00016602,2]
[366075594,1750050670185,-292.44622,0.00016602,2]
[366075595,1750050670194,-292.44622,0.00016602,2]
[366075596,1750050670205,-490.0,0.00016602,2]
[366075597,1750050670215,-825.54,0.00016602,2]
[366075598,1750050670224,-5152.51,0.00016602,2]
[366075599,1750050670234,-699.91,0.00016602,2]
[366075600,1750050670243,-292.44622,0.00016602,2]
[366075601,1750050670253,-1489.38,0.00016602,2]
[366075602,1750050670262,-292.44622,0.00016602,2]
[366075603,1750050670272,-837.86,0.00016602,2]
[366075604,1750050670283,-292.44622,0.00016602,2]
[366075605,1750050670293,-292.44622,0.00016602,2]
[366075606,1750050670303,-292.446211,0.00016602,2]
[366075607,1750050670313,-490.0,0.00016602,2]
[366075608,1750050670324,-1112.46,0.00016602,2]
[366075609,1750050670334,-490.0,0.00016602,2]
[366075610,1750050670343,-490.0,0.00016602,2]
[366075611,1750050670354,-1627.94,0.00016602,2]
[366075612,1750050670364,-2062.4,0.00016602,2]
[366075613,1750050670373,-499.38743878,0.00016602,2]
[366075614,1750050670384,-1530.87,0.00016602,2]
[366075615,1750050670393,-2165.0,0.00016602,2]
[366075616,1750050670403,-2866.15,0.00016602,2]
[366075617,1750050670413,-1064.04,0.00016602,2]
[366075618,1750050670423,-1602.19,0.00016602,2]
[366075619,1750050670432,-981.39,0.00016602,2]
[366075620,1750050670442,-1015.34,0.00016602,2]
[366075621,1750050670451,-200.0,0.00016602,2]
[366075622,1750050670462,-2815.08,0.00016602,2]
[366075623,1750050670472,-4830.77,0.00016602,2]
[366075624,1750050670482,-1181.05,0.00016602,2]
[366075625,1750050670492,-490.0,0.00016602,2]
[366075626,1750050670502,-243.742684,0.00016602,2]
[366075627,1750050670512,-243.742684,0.00016602,2]
[366075628,1750050670522,-243.742684,0.00016602,2]
[366075629,1750050670531,-1484.94,0.00016602,2]
[366075630,1750050670541,-243.742684,0.00016602,2]
[366075631,1750050670551,-243.742684,0.00016602,2]
[366075632,1750050670562,-908.96,0.00016602,2]
[366075633,1750050670572,-1520.19,0.00016602,2]
[366075634,1750050670583,-243.742684,0.00016602,2]
[366075635,1750050670596,-4343.41,0.00016602,2]
[366075636,1750050670606,-243.742684,0.00016602,2]
[366075637,1750050670615,-243.742684,0.00016602,2]
[366075638,1750050670625,-243.742684,0.00016602,2]
[366075639,1750050670636,-243.742677,0.00016602,2]
[366075640,1750050670645,-4518.67,0.00016602,2]
[366075641,1750050670655,-499.89249814,0.00016602,2]
[366075642,1750050670665,-19828.6,0.00016602,2]
[366075643,1750050670675,-2453.03,0.00016602,2]
[366075644,1750050670685,-1444.72,0.00016602,2]
[366075645,1750050670695,-490.0,0.00016602,2]
[366075646,1750050670706,-988.1,0.00016602,2]
[366075647,1750050670716,-1615.21,0.00016602,2]
[366075648,1750050670727,-490.0,0.00016602,2]
[366075649,1750050670736,-22668.47,0.00016602,2]
[366075650,1750050670747,-490.0,0.00016602,2]
[366075651,1750050670758,-1017.54,0.00016602,2]
[366075652,1750050670768,-1063.85,0.00016602,2]
[366075653,1750050670778,-1744.4,0.00016602,2]
[366075654,1750050670787,-1326.57,0.00016602,2]
[366075655,1750050670798,-490.0,0.00016602,2]
[366075656,1750050670807,-5188.61,0.00016602,2]
[366075657,1750050670817,-556.46,0.00016602,2]
[366075658,1750050670828,-490.0,0.00016602,2]
[366075659,1750050670838,-1845.42,0.00016602,2]
[366075660,1750050670848,-1112.8,0.00016602,2]
[366075661,1750050670859,-4375.9,0.00016602,2]
[366075662,1750050670869,-500.0,0.00016602,2]
[366075663,1750050670879,-204.0,0.00016605,3]
[366075664,1750050670892,-614.01624509,0.00016608,2]
[366075665,1750050670902,-151.0,0.00016624,2]
[366075666,1750050671131,-151.0,0.00016624,2]
[366075667,1750050671146,-5602.62034827,0.00016624,2]
[366075668,1750050671155,-500.0,0.0001663,2]
[366075669,1750050671165,-1242.57684771,0.00016639,2]
[366075670,1750050671175,-500.0,0.00016647,2]
[366075671,1750050671185,-234.411313,0.00016648,2]
[366075672,1750050671195,-234.411315,0.00016648,2]
[366075673,1750050671205,-225.721112,0.00016648,2]
[366075674,1750050671215,-225.721107,0.00016648,2]
[366075675,1750050671224,-500.0,0.00016648,2]
[366075676,1750050671235,-500.0,0.00016648,2]
[366075677,1750050671245,-500.0,0.00016648,2]
[366075678,1750050671254,-500.0,0.00016648,2]
[366075679,1750050671264,-500.0,0.00016648,2]
[366075680,1750050671274,-500.0,0.00016648,2]
[366075681,1750050671283,-500.0,0.00016648,2]
[366075682,1750050671294,-500.0,0.00016648,2]
[366075683,1750050671304,-500.0,0.00016648,2]
[366075684,1750050671314,-500.0,0.00016648,2]
[366075685,1750050671324,-500.0,0.00016648,2]
[366075686,1750050671334,-500.0,0.00016648,2]
[366075687,1750050671344,-500.0,0.00016648,2]
[366075688,1750050671354,-500.0,0.00016648,2]
[366075689,1750050671363,-500.0,0.00016648,2]
[366075690,1750050671375,-500.0,0.00016648,2]
[366075691,1750050671385,-500.0,0.00016648,2]
[366075692,1750050671395,-500.0,0.00016648,2]
[366075693,1750050671407,-500.0,0.00016648,2]
[366075694,1750050671417,-500.0,0.00016648,2]
[366075695,1750050671427,-500.0,0.00016648,2]
[366075696,1750050671438,-500.0,0.00016648,2]
[366075697,1750050671448,-500.0,0.00016648,2]
[366075698,1750050671458,-500.0,0.00016648,2]
[366075699,1750050671468,-500.0,0.00016648,2]
[366075700,1750050671479,-500.0,0.00016648,2]
[366075701,1750050671491,-500.0,0.00016648,2]
[366075702,1750050671501,-500.0,0.00016648,2]
[366075703,1750050671511,-500.0,0.00016648,2]
[366075704,1750050671522,-500.0,0.00016648,2]
[366075705,1750050671533,-500.0,0.00016648,2]
[366075706,1750050671544,-500.0,0.00016648,2]
[366075707,1750050671556,-500.0,0.00016648,2]
[366075708,1750050671566,-500.0,0.00016648,2]
[366075709,1750050671576,-500.0,0.00016648,2]
[366075710,1750050671586,-500.0,0.00016648,2]
[366075711,1750050671596,-500.0,0.00016648,2]
[366075712,1750050671606,-500.0,0.00016648,2]
[366075713,1750050671616,-500.0,0.00016648,2]
[366075714,1750050671626,-500.0,0.00016648,2]
[366075715,1750050671636,-500.0,0.00016648,2]
[366075716,1750050671646,-500.0,0.00016648,2]
[366075717,1750050671656,-500.0,0.00016648,2]
[366075718,1750050671666,-500.0,0.00016648,2]
[366075719,1750050671676,-500.0,0.00016648,2]
[366075720,1750050671686,-500.0,0.00016648,2]
[366075721,1750050671696,-500.0,0.00016648,2]
[366075722,1750050671706,-500.0,0.00016648,2]
[366075723,1750050671716,-500.0,0.00016648,2]
[366075724,1750050671726,-500.0,0.00016648,2]
[366075725,1750050671736,-500.0,0.00016648,2]
[366075726,1750050671746,-500.0,0.00016648,2]
[366075727,1750050671756,-500.0,0.00016648,2]
[366075728,1750050671766,-500.0,0.00016648,2]
[366075729,1750050671775,-500.0,0.00016648,2]
[366075730,1750050671790,-500.0,0.00016648,2]
[366075731,1750050671800,-500.0,0.00016648,2]
[366075732,1750050671811,-500.0,0.00016648,2]
[366075733,1750050671821,-500.0,0.00016648,2]
[366075734,1750050671832,-500.0,0.00016648,2]
[366075735,1750050671842,-500.0,0.00016648,2]
[366075736,1750050671851,-500.0,0.00016648,2]
[366075737,1750050671861,-500.0,0.00016648,2]
[366075738,1750050671871,-500.0,0.00016648,2]
[366075739,1750050671880,-500.0,0.00016648,2]
[366075740,1750050671893,-500.0,0.00016648,2]
[366075741,1750050671907,-500.0,0.00016648,2]
[366075742,1750050671916,-500.0,0.00016648,2]
[366075743,1750050671926,-500.0,0.00016648,2]
[366075744,1750050671938,-500.0,0.00016648,2]
[366075745,1750050671948,-500.0,0.00016648,2]
[366075746,1750050671958,-500.0,0.00016648,2]
[366075747,1750050671969,-500.0,0.00016648,2]
[366075748,1750050671979,-500.0,0.00016648,2]
[366075749,1750050671989,-500.0,0.00016648,2]
[366075750,1750050671999,-500.0,0.00016648,2]
[366075751,1750050672008,-500.0,0.00016648,2]
[366075752,1750050672017,-500.0,0.00016648,2]
[366075753,1750050672027,-500.0,0.00016648,2]
[366075754,1750050672037,-500.0,0.00016648,2]
[366075755,1750050672047,-500.0,0.00016648,2]
[366075756,1750050672057,-500.0,0.00016648,2]
[366075757,1750050672066,-500.0,0.00016648,2]
[366075758,1750050672076,-500.0,0.00016648,2]
[366075759,1750050672086,-500.0,0.00016648,2]
[366075760,1750050672095,-500.0,0.00016648,2]
[366075761,1750050672106,-500.0,0.00016648,2]
[366075762,1750050672116,-500.0,0.00016648,2]
[366075763,1750050672126,-500.0,0.00016648,2]
[366075764,1750050672135,-500.0,0.00016648,2]
[366075765,1750050672145,-500.0,0.00016648,2]
[366075766,1750050672155,-500.0,0.00016648,2]
[366075767,1750050672164,-500.0,0.00016648,2]
[366075768,1750050672174,-500.0,0.00016648,2]
[366075769,1750050672183,-500.0,0.00016648,2]
[366075770,1750050672193,-500.0,0.00016648,2]
[366075771,1750050672202,-500.0,0.00016648,2]
[366075772,1750050672212,-500.0,0.00016648,2]
[366075773,1750050672221,-500.0,0.00016648,2]
[366075774,1750050672231,-500.0,0.00016648,2]
[366075775,1750050672240,-500.0,0.00016648,2]
[366075776,1750050672249,-500.0,0.00016648,2]
[366075777,1750050672259,-500.0,0.00016648,2]
[366075778,1750050672268,-500.0,0.00016648,2]
[366075779,1750050672277,-500.0,0.00016648,2]
[366075780,1750050672286,-500.0,0.00016648,2]
[366075781,1750050672295,-500.0,0.00016648,2]
[366075782,1750050672305,-500.0,0.00016648,2]
[366075783,1750050672315,-500.0,0.00016648,2]
[366075784,1750050672324,-500.0,0.00016648,2]
[366075785,1750050672333,-500.0,0.00016648,2]
[366075786,1750050672343,-500.0,0.00016648,2]
[366075787,1750050672352,-500.0,0.00016648,2]
[366075788,1750050672361,-500.0,0.00016648,2]
[366075789,1750050672371,-500.0,0.00016648,2]
[366075790,1750050672380,-500.0,0.00016648,2]
[366075791,1750050672389,-500.0,0.00016648,2]
[366075792,1750050672399,-500.0,0.00016648,2]
[366075793,1750050672408,-500.0,0.00016648,2]
[366075794,1750050672418,-500.0,0.00016648,2]
[366075795,1750050672429,-500.0,0.00016648,2]
[366075796,1750050672439,-500.0,0.00016648,2]
[366075797,1750050672448,-500.0,0.00016648,2]
[366075798,1750050672459,-500.0,0.00016648,2]
[366075799,1750050672468,-500.0,0.00016648,2]
[366075800,1750050672478,-500.0,0.00016648,2]
[366075801,1750050672487,-500.0,0.00016648,2]
[366075802,1750050672497,-500.0,0.00016648,2]
[366075803,1750050672506,-500.0,0.00016648,2]
[366075804,1750050672516,-500.0,0.00016648,2]
[366075805,1750050672526,-500.0,0.00016648,2]
[366075806,1750050672536,-500.0,0.00016648,2]
[366075807,1750050672545,-500.0,0.00016648,2]
[366075808,1750050672555,-500.0,0.00016648,2]
[366075809,1750050672564,-500.0,0.00016648,2]
[366075810,1750050672575,-500.0,0.00016648,2]
[366075811,1750050672584,-239.266396,0.00016648,2]
[366075812,1750050672594,-500.0,0.00016648,2]
[366075813,1750050672603,-500.0,0.00016648,2]
[366075814,1750050672614,-500.0,0.00016648,2]
[366075815,1750050672623,-500.0,0.00016648,2]
[366075816,1750050672633,-500.0,0.00016648,2]
[366075817,1750050672642,-735.0,0.00016648,2]
[366075818,1750050672652,-239.266388,0.00016648,2]
[366075819,1750050672662,-500.0,0.00016648,2]
[366075820,1750050672671,-500.0,0.00016648,2]
[366075821,1750050672680,-500.0,0.00016648,2]
[366075822,1750050672690,-500.0,0.00016648,2]
[366075823,1750050672700,-500.0,0.00016648,2]
[366075824,1750050672710,-500.0,0.00016648,2]
[366075825,1750050672720,-500.0,0.00016648,2]
[366075826,1750050672730,-500.0,0.00016648,2]
[366075827,1750050672740,-500.0,0.00016648,2]
[366075828,1750050672750,-500.0,0.00016648,2]
[366075829,1750050672760,-500.0,0.00016648,2]
[366075830,1750050672770,-500.0,0.00016648,2]
[366075831,1750050672779,-500.0,0.00016648,2]
[366075832,1750050672790,-308.298984,0.00016648,2]
[366075833,1750050672799,-500.0,0.00016648,2]
[366075834,1750050672810,-500.0,0.00016648,2]
[366075835,1750050672819,-500.0,0.00016648,2]
[366075836,1750050672830,-215.870497,0.00016648,2]
[366075837,1750050672840,-500.0,0.00016648,2]
[366075838,1750050672850,-500.0,0.00016648,2]
[366075839,1750050672860,-500.0,0.00016648,2]
[366075840,1750050672870,-500.0,0.00016648,2]
[366075841,1750050672880,-500.0,0.00016648,2]
[366075842,1750050672892,-500.0,0.00016648,2]
[366075843,1750050672902,-500.0,0.00016648,2]
[366075844,1750050672911,-500.0,0.00016648,2]
[366075845,1750050672921,-500.0,0.00016648,2]
[366075846,1750050672932,-308.298987,0.00016648,2]
[366075847,1750050672942,-500.0,0.00016648,2]
[366075848,1750050672952,-500.0,0.00016648,2]
[366075849,1750050672963,-500.0,0.00016648,2]
[366075850,1750050672976,-215.870495,0.00016648,2]
[366075851,1750050672986,-500.0,0.00016648,2]
[366075852,1750050672996,-500.0,0.00016648,2]
[366075853,1750050673006,-500.0,0.00016648,2]
[366075854,1750050673015,-500.0,0.00016648,2]
[366075855,1750050673026,-500.0,0.00016648,2]
[366075856,1750050673036,-500.0,0.00016648,2]
[366075857,1750050673045,-500.0,0.00016648,2]
[366075858,1750050673055,-500.0,0.00016648,2]
[366075859,1750050673066,-500.0,0.00016648,2]
[366075860,1750050673075,-500.0,0.00016648,2]
[366075861,1750050673085,-500.0,0.00016648,2]
[366075862,1750050673094,-500.0,0.00016648,2]
[366075863,1750050673104,-500.0,0.00016648,2]
[366075864,1750050673115,-500.0,0.00016648,2]
[366075865,1750050673124,-500.0,0.00016648,2]
[366075866,1750050673134,-500.0,0.00016648,2]
[366075867,1750050673143,-500.0,0.00016648,2]
[366075868,1750050673153,-500.0,0.00016648,2]
[366075869,1750050673162,-500.0,0.00016648,2]
[366075870,1750050673171,-500.0,0.00016648,2]
[366075871,1750050673181,-500.0,0.00016648,2]
[366075872,1750050673191,-500.0,0.00016648,2]
[366075873,1750050673201,-500.0,0.00016648,2]
[366075874,1750050673210,-500.0,0.00016648,2]
[366075875,1750050673220,-500.0,0.00016648,2]
[366075876,1750050673229,-500.0,0.00016648,2]
[366075877,1750050673239,-500.0,0.00016648,2]
[366075878,1750050673597,-500.0,0.00016648,2]
[366075879,1750050673607,-500.0,0.00016648,2]
[366075880,1750050673617,-500.0,0.00016648,2]
[366075881,1750050673627,-500.0,0.00016648,2]
[366075882,1750050673637,-500.0,0.00016648,2]
[366075883,1750050673647,-500.0,0.00016648,2]
[366075884,1750050673658,-500.0,0.00016648,2]
[366075885,1750050673668,-500.0,0.00016648,2]
[366075886,1750050673678,-500.0,0.00016648,2]
[366075887,1750050673688,-500.0,0.00016648,2]
[366075888,1750050673698,-500.0,0.00016648,2]
[366075889,1750050673708,-500.0,0.00016648,2]
[366075890,1750050673718,-500.0,0.00016648,2]
[366075891,1750050673728,-500.0,0.00016648,2]
[366075892,1750050673738,-500.0,0.00016648,2]
[366075893,1750050673748,-764.0,0.00016648,2]
[366075894,1750050673759,-500.0,0.00016648,2]
[366075895,1750050673768,-151.0,0.00016648,2]
[366075896,1750050673778,-500.0,0.00016648,2]
[366075897,1750050673787,-500.0,0.00016648,2]
[366075898,1750050673797,-500.0,0.00016648,2]